bitfinex/quotes_BTCUSD_20220202
["timestamp","ask_amount","ask_price","bid_price","bid_amount"]
[1643810097781,8.017e-05,38389.0,38387.0,0.130252]
[1643810097981,8.017e-05,38389.0,38388.0,0.10010834]
[1643810098182,8.017e-05,38389.0,38387.0,0.130252]
[1643810098381,8.017e-05,38389.0,38388.0,0.09513661]
[1643810098582,8.017e-05,38389.0,38388.0,0.06512918]
[1643810099984,8.017e-05,38389.0,38387.0,0.1303362]
[1643810100184,8.017e-05,38389.0,38387.0,0.130252]
[1643810100639,8.017e-05,38389.0,38388.0,0.97176091]
[1643810100837,8.017e-05,38389.0,38388.0,0.984172]
[1643810101036,8.017e-05,38389.0,38388.0,1.11998891]
[1643810101539,8.017e-05,38389.0,38388.0,1.38564399]
[1643810102536,8.017e-05,38389.0,38388.0,1.39349094]
[1643810102739,8.017e-05,38389.0,38388.0,1.38564399]
[1643810104141,8.017e-05,38389.0,38388.0,1.33354399]
[1643810104579,8.017e-05,38389.0,38388.0,1.43354399]
[1643810105079,8.017e-05,38389.0,38388.0,1.33354399]
[1643810105281,8.017e-05,38389.0,38388.0,1.48564399]
[1643810106787,0.29931252,38390.0,38389.0,0.880211]
[1643810106984,0.00068739,38392.0,38390.0,0.75]
[1643810107185,0.28467037,38400.0,38389.0,1.164379]
[1643810107186,0.28467037,38400.0,38392.0,0.880201]
[1643810107484,0.28467037,38400.0,38397.0,0.37665776]
[1643810107683,0.28467037,38400.0,38398.0,0.0521]
[1643810108732,0.28467037,38400.0,38399.0,0.7189559]
[1643810108933,0.28467037,38400.0,38399.0,1.04877079]
[1643810109135,0.28467037,38400.0,38399.0,1.09877079]
[1643810109934,0.28467037,38400.0,38399.0,1.19585588]
[1643810110336,0.28467037,38400.0,38399.0,0.64877079]
[1643810112379,0.28467037,38400.0,38399.0,0.73733048]
[1643810112582,0.00017588,38412.0,38400.0,1.010352]
[1643810112780,0.00017588,38412.0,38402.0,0.130166]
[1643810112983,0.17704754,38416.0,38403.0,0.33895098]
[1643810113282,0.00017588,38416.0,38404.0,0.05555165]
[1643810113481,0.00017588,38419.0,38413.0,0.25061275]
[1643810113680,0.00017588,38419.0,38410.0,0.065082]
[1643810113883,0.00017588,38419.0,38413.0,0.05]
[1643810114081,0.00017588,38421.0,38413.0,0.05]
[1643810114280,0.00017588,38421.0,38410.0,0.165082]
[1643810114487,0.00017588,38422.0,38415.0,0.1]
[1643810114687,0.00017588,38422.0,38416.0,0.35187798]
[1643810114985,0.00017588,38422.0,38418.0,0.2011323]
[1643810115183,0.00017588,38425.0,38419.0,0.134054]
[1643810115383,0.00017588,38425.0,38420.0,0.081949]
[1643810115638,0.00017588,38425.0,38423.0,0.095208]
[1643810115836,0.02840278,38429.0,38423.0,0.095208]
[1643810115837,0.01017588,38429.0,38424.0,0.1021]
[1643810116037,0.01017588,38429.0,38424.0,0.05]
[1643810116038,0.20484098,38428.0,38424.0,0.05]
[1643810116337,0.01017588,38429.0,38424.0,0.05]
[1643810116338,0.00068724,38426.0,38424.0,0.05]
[1643810116534,0.00068724,38426.0,38423.0,0.180116]
[1643810116734,0.26963415,38424.0,38423.0,0.180116]
[1643810116936,0.26963415,38424.0,38423.0,0.115058]
[1643810116937,0.58340952,38424.0,38423.0,0.115058]
[1643810117335,0.58340952,38424.0,38420.0,0.130146]
[1643810117336,0.7882505,38424.0,38420.0,0.130146]
[1643810117536,0.20484098,38423.0,38420.0,0.1012038]
[1643810117738,0.348389,38422.0,38408.0,0.13016]
[1643810117934,0.21459394,38412.0,38404.0,0.260301]
[1643810118136,0.21459394,38412.0,38409.0,0.065091]
[1643810118337,0.21459394,38412.0,38410.0,0.130178]
[1643810118534,0.00068731,38411.0,38410.0,0.130178]
[1643810118736,0.00068731,38411.0,38410.0,0.262168]
[1643810118936,0.00068731,38411.0,38410.0,0.212168]
[1643810119381,0.00068731,38411.0,38410.0,0.130178]
[1643810119587,0.0521,38418.0,38410.0,0.130178]
[1643810119588,0.36892273,38415.0,38410.0,0.130178]
[1643810119785,0.00068731,38412.0,38410.0,0.130178]
[1643810119982,0.00068731,38412.0,38410.0,0.180178]
[1643810120784,0.25851599,38414.0,38410.0,0.180178]
[1643810120984,0.0006873,38413.0,38410.0,0.180178]
[1643810121184,0.0006873,38413.0,38411.0,0.0485949]
[1643810121385,0.0006873,38413.0,38411.0,0.1136829]
[1643810121583,0.0006873,38413.0,38412.0,0.04568224]
[1643810121985,0.00017588,38418.0,38412.0,0.09568224]
[1643810122183,0.0006873,38414.0,38413.0,0.065089]
[1643810122588,0.0006873,38414.0,38413.0,0.115089]
[1643810123055,0.25269596,38418.0,38414.0,0.04721279]
[1643810123249,0.00017588,38417.0,38414.0,0.11229779]
[1643810123447,0.00068729,38415.0,38414.0,0.16229779]
[1643810123647,0.00068729,38415.0,38414.0,0.115085]
[1643810124247,0.18983327,38417.0,38414.0,0.065085]
[1643810124451,0.25269596,38418.0,38414.0,0.065085]
[1643810124452,0.348389,38416.0,38414.0,0.065085]
[1643810124650,0.00068729,38416.0,38414.0,0.065085]
[1643810125058,0.00068729,38416.0,38411.0,0.130177]
[1643810125059,0.400489,38415.0,38411.0,0.130177]
[1643810125254,1.0344477,38414.0,38410.0,0.130183]
[1643810125455,0.23529302,38412.0,38410.0,0.130183]
[1643810125653,0.55590792,38411.0,38410.0,0.130183]
[1643810125855,0.23529302,38412.0,38410.0,0.130183]
[1643810126453,0.20764861,38413.0,38410.0,0.130183]
[1643810126655,0.00017588,38413.0,38410.0,0.130183]
[1643810126890,0.065094,38433.0,38410.0,0.130183]
[1643810126891,0.00017588,38414.0,38410.0,0.130183]
[1643810127090,0.00067635,38413.0,38410.0,0.130183]
[1643810127287,0.00067635,38413.0,38410.0,0.180183]
[1643810127488,0.00067635,38413.0,38411.0,0.26917131]
[1643810127691,0.00067635,38413.0,38410.0,0.37297776]
[1643810127988,0.21027096,38416.0,38411.0,0.065091]
[1643810128188,0.00067635,38413.0,38411.0,0.130181]
[1643810128587,0.00067635,38413.0,38412.0,0.05]
[1643810129187,0.00017588,38415.0,38414.0,0.09222122]
[1643810129389,0.21027096,38416.0,38412.0,0.05]
[1643810129790,0.3014812,38416.0,38414.0,0.10556985]
[1643810130295,0.3014812,38416.0,38414.0,0.09757827]
[1643810130296,0.32874936,38415.0,38414.0,0.09757827]
[1643810130551,0.32874936,38415.0,38405.0,0.260392]
[1643810130552,0.91602295,38415.0,38405.0,0.260392]
[1643810130740,0.1,38411.0,38403.0,0.065109]
[1643810130938,0.58102524,38415.0,38400.0,0.10247045]
[1643810130939,0.348389,38410.0,38400.0,0.10247045]
[1643810131141,0.22628096,38404.0,38400.0,0.0927505]
[1643810131339,0.22628096,38404.0,38399.0,0.09091179]
[1643810131538,0.0521,38403.0,38400.0,0.130211]
[1643810132039,0.0521,38403.0,38401.0,0.05]
[1643810132240,0.0521,38403.0,38401.0,0.14148458]
[1643810132439,0.0521,38403.0,38402.0,0.00044378]
[1643810133139,0.0521,38403.0,38401.0,0.30321149]
[1643810133338,0.0521,38403.0,38402.0,0.082015]
[1643810133541,0.00065842,38404.0,38402.0,0.00044378]
[1643810133940,0.00017588,38407.0,38402.0,0.00044378]
[1643810134140,0.28259087,38408.0,38402.0,0.00044378]
[1643810134383,0.2581176,38404.0,38400.0,0.18065578]
[1643810134585,8.977e-05,38403.0,38400.0,0.18065578]
[1643810135386,8.977e-05,38403.0,38400.0,0.180212]
[1643810135587,8.977e-05,38403.0,38402.0,0.00044378]
[1643810135984,8.977e-05,38403.0,38402.0,0.08246278]
[1643810137684,8.977e-05,38403.0,38402.0,0.13246278]
[1643810138140,8.977e-05,38403.0,38400.0,0.130212]
[1643810138338,8.977e-05,38403.0,38401.0,0.082021]
[1643810138540,8.977e-05,38403.0,38400.0,0.130212]
[1643810139138,8.977e-05,38403.0,38401.0,0.08246578]
[1643810139337,8.977e-05,38403.0,38402.0,0.08202]
[1643810139538,8.977e-05,38403.0,38401.0,0.00044378]
[1643810140141,8.977e-05,38403.0,38402.0,0.082019]
[1643810140539,8.977e-05,38403.0,38401.0,0.00044378]
[1643810140743,8.977e-05,38403.0,38402.0,0.082019]
[1643810141784,8.977e-05,38403.0,38402.0,0.08246278]
[1643810142582,8.977e-05,38403.0,38402.0,0.28438541]
[1643810146634,8.977e-05,38403.0,38402.0,0.16246278]
[1643810147236,0.00017588,38412.0,38405.0,0.08]
[1643810147435,0.64143819,38413.0,38405.0,0.08]
[1643810147638,0.64143819,38413.0,38406.0,0.08]
[1643810147838,0.23538066,38410.0,38406.0,0.08]
[1643810148540,0.23603915,38410.0,38406.0,0.08]
[1643810148938,0.00065849,38410.0,38406.0,0.08]
[1643810149140,0.00065849,38410.0,38406.0,0.27000179]
[1643810149391,0.00065849,38410.0,38409.0,0.68044378]
[1643810149588,0.00017588,38416.0,38409.0,0.81243578]
[1643810149789,0.00017588,38416.0,38411.0,0.08]
[1643810149988,0.20773369,38419.0,38415.0,0.08]
[1643810150193,0.32408083,38419.0,38415.0,0.08]
[1643810150389,0.05,38416.0,38415.0,0.08]
[1643810151190,0.00065845,38417.0,38415.0,0.08]
[1643810151387,0.05,38416.0,38415.0,0.08]
[1643810151788,0.00065845,38417.0,38415.0,0.08044378]
[1643810151989,0.00017588,38418.0,38415.0,0.08044378]
[1643810152188,0.00065852,38417.0,38415.0,0.08044378]
[1643810152789,0.00065852,38417.0,38415.0,0.08]
[1643810153046,0.00044885,38417.0,38415.0,0.08]
[1643810153234,0.00017588,38418.0,38415.0,0.08]
[1643810153435,0.00017588,38418.0,38415.0,0.31142541]
[1643810153436,0.00065851,38418.0,38415.0,0.31142541]
[1643810153837,0.00065851,38418.0,38415.0,0.08]
[1643810154236,0.05,38416.0,38415.0,0.08]
[1643810154436,0.0500841,38416.0,38415.0,0.08]
[1643810156456,8.41e-05,38416.0,38415.0,0.00044378]
[1643810157712,0.0500841,38416.0,38415.0,0.00019395]
[1643810158509,0.0500841,38416.0,38413.0,0.08]
[1643810159610,0.25139488,38414.0,38413.0,0.08]
[1643810160010,0.25139488,38414.0,38410.0,0.00019395]
[1643810160214,0.25139488,38414.0,38412.0,0.08]
[1643810160411,0.25157076,38414.0,38412.0,0.08]
[1643810161049,0.25139488,38414.0,38412.0,0.08]
[1643810163752,0.30139488,38414.0,38412.0,0.08]
[1643810163955,0.64892822,38413.0,38412.0,0.08]
[1643810164161,0.99731722,38413.0,38412.0,0.08]
[1643810164399,1.09950816,38413.0,38412.0,0.08]
[1643810164601,0.05,38405.0,38399.0,0.28350105]
[1643810164799,0.05,38401.0,38398.0,0.00055305]
[1643810165200,0.05,38401.0,38397.0,0.002]
[1643810165201,0.05,38401.0,38400.0,0.00019395]
[1643810165599,0.05,38401.0,38398.0,0.00055307]
[1643810165801,0.05,38401.0,38399.0,0.082029]
[1643810166004,0.05,38401.0,38399.0,0.33310671]
[1643810166202,0.05,38401.0,38400.0,0.082027]
[1643810166405,0.05,38401.0,38400.0,0.00019395]
[1643810166603,0.38282931,38408.0,38400.0,0.08019395]
[1643810166604,0.05,38404.0,38400.0,0.08019395]
[1643810166909,0.1224,38408.0,38403.0,0.00019395]
[1643810167104,0.05,38406.0,38405.0,0.00019395]
[1643810167505,0.05,38406.0,38405.0,0.08019395]
[1643810168061,0.0651,38409.0,38405.0,0.08019395]
[1643810168452,0.05,38406.0,38405.0,0.08019395]
[1643810168853,0.32689304,38406.0,38405.0,0.08019395]
[1643810169455,0.31975189,38409.0,38405.0,0.08019395]
[1643810169655,0.31975189,38409.0,38407.0,0.00019395]
[1643810169656,0.24186486,38409.0,38407.0,0.00019395]
[1643810169855,0.0651,38409.0,38407.0,0.00019395]
[1643810170857,0.00017588,38410.0,38407.0,0.00019395]
[1643810171059,0.22676486,38411.0,38409.0,0.00019395]
[1643810171060,0.00017588,38411.0,38409.0,0.00019395]
[1643810171458,0.29126486,38415.0,38409.0,0.00019395]
[1643810171459,0.29144074,38415.0,38409.0,0.00019395]
[1643810171656,0.29144074,38415.0,38407.0,0.08]
[1643810171657,0.05017588,38415.0,38414.0,0.00019395]
[1643810171907,0.05017588,38415.0,38407.0,0.08]
[1643810171908,0.23815011,38413.0,38412.0,0.00019395]
[1643810172108,0.02020769,38415.0,38412.0,0.00019395]
[1643810172308,0.27289875,38416.0,38409.0,0.08]
[1643810172309,0.27289875,38416.0,38414.0,0.00019395]
[1643810172510,0.05,38415.0,38409.0,0.08]
[1643810172706,0.27272287,38416.0,38412.0,0.00019395]
[1643810172907,0.27272287,38416.0,38414.0,0.00019395]
[1643810173107,0.21413277,38415.0,38412.0,0.00019395]
[1643810173308,0.26413277,38415.0,38412.0,0.08019395]
[1643810173508,0.05,38415.0,38412.0,0.08019395]
[1643810173708,0.05,38415.0,38414.0,0.00019395]
[1643810173911,0.00017588,38416.0,38414.0,0.00019395]
[1643810174110,0.00017588,38418.0,38414.0,0.00019395]
[1643810174510,0.25309288,38417.0,38412.0,0.28270679]
[1643810174714,0.30309288,38417.0,38416.0,0.00019395]
[1643810174910,0.58325277,38417.0,38416.0,0.00019395]
[1643810175209,0.58325277,38417.0,38412.0,0.08]
[1643810175410,0.58325277,38417.0,38414.0,0.00019395]
[1643810175654,0.28015989,38417.0,38416.0,0.00019395]
[1643810175855,0.00017588,38418.0,38416.0,0.00019395]
[1643810176054,0.00017588,38418.0,38412.0,0.08]
[1643810176251,0.05083388,38419.0,38412.0,0.08]
[1643810176653,0.30491882,38419.0,38414.0,0.08]
[1643810176852,0.05083388,38419.0,38414.0,0.08]
[1643810177256,0.05017588,38419.0,38414.0,0.08]
[1643810177453,0.05083387,38419.0,38414.0,0.07992594]
[1643810177853,0.05083387,38419.0,38418.0,0.00019395]
[1643810178053,0.05065799,38419.0,38418.0,0.00019395]
[1643810178453,0.00017588,38421.0,38418.0,0.00019395]
[1643810178655,0.00065799,38420.0,38418.0,0.00019395]
[1643810178854,0.27439791,38419.0,38418.0,0.00019395]
[1643810179054,0.22439791,38419.0,38418.0,0.00019395]
[1643810179500,0.22439791,38419.0,38414.0,0.07992594]
[1643810179700,0.22439791,38419.0,38418.0,0.00019395]
[1643810179903,0.22457379,38419.0,38418.0,0.00019395]
[1643810180103,0.22457379,38419.0,38414.0,0.30133177]
[1643810180301,0.22457379,38419.0,38414.0,0.07992594]
[1643810180502,0.22439791,38419.0,38414.0,0.07992594]
[1643810180706,0.05,38417.0,38414.0,0.07992594]
[1643810180908,0.24139736,38418.0,38414.0,0.07992594]
[1643810180909,0.05,38415.0,38414.0,0.07992594]
[1643810181106,0.60196201,38415.0,38414.0,0.07992594]
[1643810181304,0.398389,38415.0,38414.0,0.07992594]
[1643810181503,0.66860621,38415.0,38414.0,0.08011989]
[1643810181704,0.59534154,38415.0,38414.0,0.08011989]
[1643810182304,0.065094,38416.0,38414.0,0.08011989]
[1643810182510,0.05017588,38417.0,38414.0,0.07992594]
[1643810182706,0.05,38417.0,38416.0,0.00019395]
[1643810184259,0.05,38417.0,38414.0,0.07992594]
[1643810184458,8.736e-05,38415.0,38414.0,0.07992594]
[1643810184859,8.736e-05,38415.0,38414.0,0.08011989]
[1643810185062,8.736e-05,38415.0,38414.0,0.07992594]
[1643810185461,8.736e-05,38415.0,38414.0,0.08011989]
[1643810186364,0.35008736,38415.0,38414.0,0.08011989]
[1643810186804,0.54309048,38415.0,38414.0,0.07992594]
[1643810187002,0.35008736,38415.0,38414.0,0.08011989]
[1643810187603,0.35008736,38415.0,38414.0,0.07992594]
[1643810187801,0.35008736,38415.0,38414.0,0.0877121]
[1643810188300,0.05008736,38415.0,38408.0,0.00054754]
[1643810188502,0.05,38412.0,38408.0,0.00054754]
[1643810188902,0.05,38412.0,38410.0,0.00019395]
[1643810189503,0.23323346,38411.0,38410.0,0.00019395]
[1643810189707,0.63162246,38411.0,38408.0,0.00054754]
[1643810189905,0.05,38409.0,38408.0,0.00054754]
[1643810190108,0.05,38409.0,38408.0,0.00074149]
[1643810190560,0.05,38409.0,38408.0,0.00019395]
[1643810190758,1.29775869,38409.0,38408.0,0.00019395]
[1643810190955,0.398389,38409.0,38408.0,0.00019395]
[1643810191155,0.57515386,38409.0,38408.0,0.00019395]
[1643810191356,0.398389,38409.0,38408.0,0.00019395]
[1643810191754,0.05,38409.0,38408.0,0.00019395]
[1643810192256,0.29833351,38411.0,38408.0,0.00019395]
[1643810192459,0.05,38409.0,38408.0,0.00019395]
[1643810192662,0.29833351,38411.0,38408.0,0.00019395]
[1643810192858,0.348389,38410.0,38408.0,0.00019395]
[1643810193058,0.29833351,38411.0,38408.0,0.00019395]
[1643810193259,0.17676486,38411.0,38408.0,0.00019395]
[1643810193460,0.53043601,38412.0,38408.0,0.00019395]
[1643810193461,0.44767627,38412.0,38408.0,0.00019395]
[1643810193660,0.27091141,38412.0,38408.0,0.00019395]
[1643810194302,8.583e-05,38409.0,38401.0,0.35880775]
[1643810194502,8.583e-05,38409.0,38400.0,0.18814227]
[1643810194503,8.583e-05,38409.0,38408.0,0.00019395]
[1643810196005,8.583e-05,38409.0,38408.0,0.08218995]
[1643810196205,8.583e-05,38409.0,38408.0,0.33218995]
[1643810196908,8.583e-05,38409.0,38408.0,0.08218995]
[1643810199552,0.00026171,38415.0,38408.0,0.08218995]
[1643810199754,0.20480785,38410.0,38407.0,0.00064599]
[1643810199953,0.20480785,38410.0,38409.0,0.00019395]
[1643810200357,0.3190531,38413.0,38409.0,0.00019395]
[1643810200653,8.583e-05,38415.0,38407.0,0.00064599]
[1643810200956,8.583e-05,38415.0,38410.0,0.00019395]
[1643810201359,0.05008583,38415.0,38410.0,0.00019395]
[1643810201555,0.05026171,38415.0,38408.0,0.00064596]
[1643810201801,0.27134415,38415.0,38409.0,0.00019395]
[1643810202002,0.22134415,38415.0,38413.0,0.00019395]
[1643810202202,0.22116827,38415.0,38411.0,0.00019395]
[1643810202908,0.22116827,38415.0,38409.0,0.00019395]
[1643810202909,0.05,38413.0,38409.0,0.00019395]
[1643810203304,0.22134415,38415.0,38409.0,0.00019395]
[1643810203904,0.22134415,38415.0,38409.0,0.18806343]
[1643810204104,0.22134415,38415.0,38409.0,0.00019395]
[1643810204506,0.22134415,38415.0,38409.0,0.1904579]
[1643810204704,0.27134415,38415.0,38409.0,0.1904579]
[1643810205307,0.05026171,38415.0,38409.0,0.19026395]
[1643810205570,8.583e-05,38415.0,38411.0,0.00019395]
[1643810206359,0.24082096,38415.0,38411.0,0.00019395]
[1643810206959,0.44048774,38415.0,38411.0,0.00019395]
[1643810207559,0.44048774,38415.0,38413.0,0.00019395]
[1643810207560,0.24082096,38415.0,38413.0,0.00019395]
[1643810208560,0.47659274,38415.0,38413.0,0.00019395]
[1643810208960,0.47659274,38415.0,38409.0,0.20335544]
[1643810209162,0.47659274,38415.0,38412.0,0.00019395]
[1643810209708,0.47659274,38415.0,38412.0,8.819e-05]
[1643810210207,0.47659274,38415.0,38408.0,0.22110588]
[1643810210428,0.47659274,38415.0,38408.0,0.41028181]
[1643810210609,0.47636787,38415.0,38408.0,0.41028181]
[1643810210812,0.47636787,38415.0,38402.0,0.18228]
[1643810210813,0.05,38409.0,38402.0,0.18228]
[1643810211011,0.05,38409.0,38408.0,0.00064596]
[1643810211910,0.28613296,38409.0,38408.0,0.00064596]
[1643810212110,0.54011715,38409.0,38403.0,0.23130908]
[1643810212311,0.54011715,38409.0,38407.0,0.00064599]
[1643810213255,0.54011715,38409.0,38401.0,0.19451352]
[1643810213459,0.05,38408.0,38406.0,0.00064599]
[1643810213859,0.900489,38407.0,38406.0,0.00064599]
[1643810214058,0.400489,38407.0,38406.0,0.00064599]
[1643810214458,0.400489,38407.0,38401.0,0.00693646]
[1643810214659,0.50435141,38402.0,38401.0,0.00693646]
[1643810216460,0.70163926,38402.0,38401.0,0.00693646]
[1643810216661,1.10212826,38402.0,38401.0,0.00693646]
[1643810217106,1.27889943,38402.0,38401.0,0.00693646]
[1643810217308,1.10212826,38402.0,38401.0,0.00693646]
[1643810217507,1.27889943,38402.0,38401.0,0.00693646]
[1643810218112,1.27889943,38402.0,38401.0,0.00192378]
[1643810218516,1.37389943,38402.0,38401.0,0.00192378]
[1643810219413,1.3739749,38402.0,38401.0,0.00192378]
[1643810220116,1.17668705,38402.0,38401.0,0.00192378]
[1643810220315,0.65932778,38402.0,38401.0,0.00192378]
[1643810220565,0.31093878,38402.0,38401.0,0.00192378]
[1643810221161,0.05217547,38402.0,38401.0,0.00192378]
[1643810221358,7.547e-05,38402.0,38401.0,0.00192378]
[1643810221860,0.12153545,38408.0,38401.0,0.00192378]
[1643810222058,0.12153545,38408.0,38401.0,0.0834494]
[1643810222458,0.66698192,38410.0,38401.0,0.0834494]
[1643810222858,0.01810989,38407.0,38401.0,0.1334494]
[1643810223058,0.01810989,38407.0,38404.0,0.00064277]
[1643810223262,0.26042368,38412.0,38405.0,0.75]
[1643810223263,0.17678347,38412.0,38405.0,0.75]
[1643810223463,0.13020123,38413.0,38409.0,0.24466999]
[1643810223464,0.17678347,38413.0,38409.0,0.24466999]
[1643810223664,0.24545224,38414.0,38406.0,0.01810989]
[1643810223860,0.67175935,38420.0,38406.0,0.07020989]
[1643810223861,0.29025935,38420.0,38406.0,0.07020989]
[1643810224061,0.27393069,38419.0,38406.0,0.27514619]
[1643810224312,0.27393069,38419.0,38408.0,0.29244575]
[1643810224513,0.27393069,38419.0,38408.0,0.34244575]
[1643810224811,0.273779,38416.0,38411.0,0.25591378]
[1643810225013,0.27393069,38419.0,38411.0,0.25591378]
[1643810225014,0.27410657,38419.0,38411.0,0.25591378]
[1643810225810,0.00017588,38419.0,38412.0,0.18797666]
[1643810226012,0.33519262,38420.0,38413.0,0.065084]
[1643810226217,0.00017588,38421.0,38413.0,0.065084]
[1643810226412,0.00017588,38421.0,38414.0,0.1904862]
[1643810226612,0.00017588,38423.0,38414.0,0.1904862]
[1643810226812,0.61705302,38421.0,38413.0,0.065084]
[1643810227211,0.27123261,38419.0,38413.0,0.065084]
[1643810227611,0.6172289,38421.0,38413.0,0.065084]
[1643810227811,0.00017588,38420.0,38413.0,0.065084]
[1643810228460,0.6172289,38421.0,38413.0,0.065084]
[1643810228661,0.2264994,38419.0,38413.0,0.065084]
[1643810229762,0.00024838,38420.0,38413.0,0.065084]
[1643810230061,0.00024838,38420.0,38412.0,0.26722328]
[1643810230465,0.00024838,38420.0,38412.0,0.26689363]
[1643810230760,0.28490743,38420.0,38412.0,0.27069813]
[1643810232513,0.06508748,38419.0,38412.0,0.0521]
[1643810232714,0.06526336,38419.0,38412.0,0.0521]
[1643810233112,0.24999491,38420.0,38412.0,0.0521]
[1643810233313,0.24999491,38420.0,38412.0,0.2389012]
[1643810233512,0.31508291,38420.0,38412.0,0.0521]
[1643810234117,0.31508291,38420.0,38412.0,0.31461245]
[1643810234118,0.065088,38418.0,38412.0,0.31461245]
[1643810234313,0.065088,38420.0,38412.0,0.31461245]
[1643810234513,7.317e-05,38419.0,38412.0,0.31461245]
[1643810235115,7.317e-05,38419.0,38417.0,0.22700997]
[1643810235313,7.317e-05,38419.0,38412.0,0.31461245]
[1643810235768,7.317e-05,38419.0,38413.0,0.06508]
[1643810235964,7.317e-05,38419.0,38414.0,0.40117464]
[1643810236365,7.317e-05,38419.0,38415.0,0.081968]
[1643810236564,7.317e-05,38419.0,38416.0,0.26999453]
[1643810236766,7.317e-05,38419.0,38417.0,0.29341769]
[1643810236964,7.317e-05,38419.0,38418.0,0.19548638]
[1643810237164,7.317e-05,38419.0,38418.0,0.45338179]
[1643810237464,7.317e-05,38419.0,38418.0,0.10338179]
[1643810237866,7.317e-05,38419.0,38418.0,0.30643763]
[1643810238265,7.317e-05,38419.0,38418.0,0.18534079]
[1643810238667,7.317e-05,38419.0,38418.0,0.081959]
[1643810239312,7.317e-05,38419.0,38418.0,0.134059]
[1643810239508,0.00051901,38422.0,38418.0,0.134059]
[1643810239709,7.291e-05,38422.0,38418.0,0.0521]
[1643810239910,0.00052197,38422.0,38418.0,0.0521]
[1643810240110,0.00052197,38422.0,38419.0,0.40448614]
[1643810240312,0.00052197,38422.0,38419.0,0.45658614]
[1643810240512,0.00052197,38422.0,38419.0,0.24025716]
[1643810240910,0.00052197,38422.0,38419.0,0.0521]
[1643810240911,7.291e-05,38422.0,38419.0,0.0521]
[1643810241113,0.00071593,38422.0,38419.0,0.0521]
[1643810241312,0.00071593,38422.0,38414.0,0.1186]
[1643810241513,0.00071593,38422.0,38415.0,0.20529638]
[1643810241711,0.00071593,38422.0,38409.0,0.3823505]
[1643810242110,0.00071593,38422.0,38412.0,0.28102495]
[1643810242111,7.291e-05,38422.0,38412.0,0.28102495]
[1643810242312,7.291e-05,38422.0,38409.0,0.65793103]
[1643810242611,0.00071588,38422.0,38412.0,0.08441096]
[1643810242812,0.2469603,38418.0,38413.0,0.2917871]
[1643810243255,0.2469603,38418.0,38413.0,0.2267081]
[1643810243853,0.00072019,38422.0,38413.0,0.2267081]
[1643810244255,0.00072019,38422.0,38411.0,0.2021915]
[1643810244458,0.00072019,38422.0,38411.0,0.2672735]
[1643810244654,7.291e-05,38422.0,38411.0,0.2672735]
[1643810244856,0.3133747,38420.0,38411.0,0.065082]
[1643810245056,0.3133747,38420.0,38409.0,0.45573953]
[1643810245257,0.26791002,38415.0,38410.0,0.27642384]
[1643810245658,0.26791002,38415.0,38409.0,0.180159]
[1643810245858,0.26291002,38415.0,38409.0,0.180159]
[1643810246258,0.3133747,38420.0,38410.0,0.26794793]
[1643810246458,0.3133747,38420.0,38409.0,0.180159]
[1643810246661,0.3133747,38420.0,38409.0,0.42487687]
[1643810247620,0.24188708,38416.0,38411.0,0.24067963]
[1643810248422,0.24188708,38416.0,38409.0,0.42487687]
[1643810248423,0.24188708,38416.0,38409.0,0.180159]
[1643810249222,0.24188708,38416.0,38409.0,0.130159]
[1643810249421,0.24188708,38416.0,38409.0,0.40672185]
[1643810249627,0.24188708,38416.0,38410.0,0.081982]
[1643810249822,0.24188708,38416.0,38411.0,0.065081]
[1643810250861,0.00025649,38419.0,38411.0,0.065081]
[1643810251760,0.27102202,38417.0,38411.0,0.065081]
[1643810252461,0.27102202,38417.0,38409.0,0.40672185]
[1643810252462,0.27102202,38417.0,38409.0,0.59378488]
[1643810252661,0.27102202,38417.0,38410.0,0.081984]
[1643810252865,0.27102202,38417.0,38409.0,0.59378488]
[1643810253462,0.27102202,38417.0,38410.0,0.081984]
[1643810254065,0.0002565,38419.0,38411.0,0.2509759]
[1643810254309,8.086e-05,38419.0,38412.0,0.081977]
[1643810254711,8.086e-05,38419.0,38412.0,0.130147]
[1643810255007,8.086e-05,38419.0,38417.0,0.25487784]
[1643810255610,8.086e-05,38419.0,38412.0,0.44553597]
[1643810255807,8.086e-05,38419.0,38413.0,0.081971]
[1643810256007,8.086e-05,38419.0,38413.0,0.26720257]
[1643810256207,8.086e-05,38419.0,38413.0,0.18523157]
[1643810256407,8.086e-05,38419.0,38414.0,0.065077]
[1643810256808,8.086e-05,38419.0,38412.0,0.13182]
[1643810257213,8.086e-05,38419.0,38413.0,0.081974]
[1643810257412,8.086e-05,38419.0,38412.0,0.13182]
[1643810257611,8.086e-05,38419.0,38413.0,0.28312014]
[1643810257811,8.086e-05,38419.0,38413.0,0.20114614]
[1643810258859,8.086e-05,38419.0,38414.0,0.25185817]
[1643810259059,8.086e-05,38419.0,38414.0,0.25495468]
[1643810259260,8.086e-05,38419.0,38415.0,0.081969]
[1643810259864,0.23578293,38419.0,38415.0,0.081969]
[1643810260061,8.086e-05,38419.0,38416.0,0.24890858]
[1643810260261,8.086e-05,38419.0,38417.0,0.081962]
[1643810260462,8.086e-05,38419.0,38418.0,0.18745689]
[1643810260662,8.086e-05,38419.0,38418.0,0.26941489]
[1643810261463,8.086e-05,38419.0,38418.0,0.91941489]
[1643810261665,8.086e-05,38419.0,38418.0,0.97771489]
[1643810261906,8.086e-05,38419.0,38418.0,0.790258]
[1643810262910,8.086e-05,38419.0,38418.0,0.731958]
[1643810263108,8.086e-05,38419.0,38418.0,0.081958]
[1643810263612,8.086e-05,38419.0,38418.0,0.140258]
[1643810263811,8.086e-05,38419.0,38418.0,0.190258]
[1643810264409,0.00026502,38421.0,38418.0,0.190258]
[1643810264613,8.938e-05,38421.0,38418.0,0.0583]
[1643810265213,8.938e-05,38421.0,38412.0,0.059973]
[1643810265414,8.938e-05,38421.0,38413.0,0.5]
[1643810265660,0.29384547,38421.0,38412.0,0.001673]
[1643810265859,0.29402111,38421.0,38412.0,0.001673]
[1643810266256,0.29402111,38421.0,38412.0,0.24882238]
[1643810267460,0.29402111,38421.0,38412.0,0.25632238]
[1643810267663,0.29384547,38421.0,38412.0,0.25632238]
[1643810268360,0.29402111,38421.0,38412.0,0.25632238]
[1643810268559,0.2654268,38418.0,38412.0,0.25632238]
[1643810270311,0.2654268,38418.0,38416.0,0.0075]
[1643810271108,0.348389,38417.0,38416.0,0.0075]
[1643810271510,0.648389,38417.0,38416.0,0.0075]
[1643810271910,1.04847144,38417.0,38416.0,0.0075]
[1643810272113,0.75,38416.0,38412.0,0.001673]
[1643810272317,0.15,38413.0,38408.0,0.00064283]
[1643810272514,0.15,38413.0,38408.0,0.00321416]
[1643810272515,0.08879934,38411.0,38408.0,0.00321416]
[1643810272710,0.406689,38410.0,38408.0,1.416e-05]
[1643810272913,1.048389,38409.0,38408.0,1.416e-05]